fUSD/lending_fUSD_20240712
["ID","MTS","AMOUNT","RATE_DAILY","PERIOD"]
[331862415,1720795853045,-563.56,0.0001452,2]
[331862416,1720795853054,-500.0,0.0001452,2]
[331862417,1720795853064,-500.0,0.00014542,2]
[331862418,1720795853073,-12381.57574884,0.00014544,3]
[331862419,1720795853086,-453.842,0.00014544,3]
[331862420,1720795853097,-302.0,0.00014544,3]
[331862421,1720795853108,-496.09575675,0.00014544,3]
[331862422,1720795853119,-4864.49391318,0.00014544,3]
[331862423,1720796018247,37170.37510737,0.00011199,2]
[331862424,1720796440363,399.8,0.00010955,2]
[331862425,1720796502633,451.19805924,0.00011199,2]
[331862426,1720796504062,1924.83391212,0.00011199,7]
[331862427,1720796619615,18763.0,0.00027,120]
[331862428,1720796667445,1444.51358906,0.00011199,2]
[331862429,1720796713581,1924.83391212,0.00011199,7]
[331862432,1720796737352,667.75858654,0.00011199,2]
[331862434,1720796796984,316.0773283,0.00011199,2]
[331862435,1720796807284,151.47,0.00025,60]
[331862436,1720796838072,230.0,0.0001656,30]
[331862438,1720796896072,1322.51760985,0.00011199,2]
[331862439,1720796932009,155.36934124,0.00011199,2]
[331862440,1720796947520,200.0,0.000165,30]
[331862451,1720797032588,1657.45529559,0.00011199,7]
[331862452,1720797034143,-188.98,0.00012867,2]
[331862454,1720797034153,-1000.0,0.00012873,2]
[331862456,1720797034163,-250.0,0.00012887,2]
[331862458,1720797034172,-177.35,0.00012926,2]
[331862460,1720797034182,-372.5107,0.00013219,2]
[331862478,1720797038182,-27.2893,0.00013219,2]
[331862479,1720797038192,-239.57449318,0.00013472,2]
[331862480,1720797038201,-155.0,0.00013472,2]
[331862481,1720797038212,-157.67620682,0.00013515,2]
[331862482,1720797038265,-142.32379318,0.00013515,2]
[331862483,1720797038275,-315.88620682,0.00013516,2]
[331862484,1720797038356,-931.61245375,0.00013516,2]
[331862485,1720797038368,-941.34203943,0.00013516,2]
[331862486,1720797038377,-499.99,0.00013516,2]
[331862487,1720797038386,-155.43704552,0.00013543,2]
[331862488,1720797038396,-150.0,0.00013549,2]
[331862489,1720797038406,-17445.00903301,0.0001355,2]
[331862643,1720797040306,-9287.54196699,0.0001355,2]
[331862646,1720797040316,-530.848,0.0001355,2]
[331862649,1720797040326,-559.196,0.0001355,2]
[331862652,1720797040337,-250.0,0.00013699,2]
[331862654,1720797040346,-445.02,0.00013699,2]
[331862656,1720797040356,-200.0,0.00013699,2]
[331862658,1720797040366,-1000.0,0.00013718,2]
[331862660,1720797040377,-2485.75656557,0.00013719,2]
[331862662,1720797040387,-614.16163118,0.00013719,2]
[331862664,1720797040396,-159.95883883,0.00013736,2]
[331862666,1720797040408,-200.0,0.00013768,4]
[331862668,1720797040418,-150.0,0.0001378,2]
[331862670,1720797040429,-1304.0,0.0001378,2]
[331862672,1720797040438,-150.0,0.0001378,2]
[331862674,1720797040447,-373.60904653,0.00013796,2]
[331862676,1720797040457,-500.0,0.00013796,2]
[331862678,1720797040467,-500.0,0.00013796,2]
[331862680,1720797040477,-500.0,0.00013796,2]
[331862682,1720797040487,-500.0,0.00013796,2]
[331862684,1720797040496,-500.0,0.00013796,2]
[331862686,1720797040505,-626.26969681,0.00013796,2]
[331862688,1720797040515,-500.0,0.00013796,2]
[331862690,1720797040525,-500.0,0.00013796,2]
[331862692,1720797040534,-500.0,0.00013796,2]
[331862694,1720797040545,-500.0,0.00013796,2]
[331862696,1720797040555,-500.0,0.00013796,2]
[331862698,1720797040564,-500.0,0.00013797,2]
[331862700,1720797040574,-500.0,0.00013797,2]
[331862702,1720797040583,-523.23780142,0.00013797,2]
[331862704,1720797040593,-500.0,0.00013797,2]
[331862706,1720797040603,-500.0,0.00013797,2]
[331862708,1720797040612,-500.0,0.00013797,2]
[331862710,1720797040622,-500.0,0.00013797,2]
[331862712,1720797040632,-500.0,0.00013797,2]
[331862714,1720797040641,-503.3664001,0.00013798,2]
[331862716,1720797040651,-574.86677197,0.00013807,2]
[331862718,1720797040661,-500.0,0.00013807,2]
[331862720,1720797040670,-500.0,0.00013807,2]
[331862722,1720797040679,-500.0,0.00013807,2]
[331862724,1720797040689,-7399.35143298,0.00013808,2]
[331862726,1720797040698,-500.0,0.00013851,2]
[331862728,1720797040708,-500.0,0.00013851,2]
[331862730,1720797040717,-595.48434119,0.00013851,2]
[331862732,1720797040726,-500.0,0.00013851,2]
[331862734,1720797040736,-500.0,0.00013851,2]
[331862736,1720797040745,-500.0,0.00013851,2]
[331862738,1720797040755,-500.0,0.00013851,2]
[331862740,1720797040764,-500.0,0.00013851,2]
[331862742,1720797040773,-500.0,0.00013851,2]
[331862744,1720797040783,-500.0,0.00013851,2]
[331862746,1720797040792,-500.0,0.00013852,2]
[331862748,1720797040802,-500.0,0.00013852,2]
[331862750,1720797040811,-500.0,0.00013852,2]
[331862752,1720797040821,-155.16658832,0.00013852,2]
[331862754,1720797040830,-236.88996264,0.00013852,2]
[331862756,1720797040841,-500.0,0.00013852,2]
[331862758,1720797040851,-500.0,0.00013852,2]
[331862760,1720797040861,-500.0,0.00013862,2]
[331862762,1720797040870,-388.99493639,0.00013862,2]
[331862764,1720797040880,-500.0,0.00013862,2]
[331862765,1720797040889,-500.0,0.00013906,2]
[331862767,1720797040899,-500.0,0.00013906,2]
[331862769,1720797040909,-627.47499764,0.00013906,2]
[331862771,1720797040921,-500.0,0.00013906,2]
[331862773,1720797040931,-500.0,0.00013906,2]
[331862775,1720797040940,-500.0,0.00013906,2]
[331862777,1720797040949,-500.0,0.00013907,2]
[331862779,1720797040958,-500.0,0.00013907,2]
[331862781,1720797040969,-469.47803754,0.00013907,2]
[331862783,1720797040978,-500.0,0.00013907,2]
[331862785,1720797040988,-500.0,0.00013917,2]
[331862787,1720797040997,-500.0,0.00013917,2]
[331862789,1720797041006,-669.3107,0.00013925,2]
[331862791,1720797041016,-12311.13261749,0.00013926,2]
[331862793,1720797041025,-500.0,0.00013961,2]
[331862795,1720797041034,-500.0,0.00013961,2]
[331862797,1720797041044,-500.0,0.00013961,2]
[331862799,1720797041053,-500.0,0.00013961,2]
[331862801,1720797041063,-500.0,0.00013961,2]
[331862803,1720797041073,-500.0,0.00013962,2]
[331862805,1720797041082,-500.0,0.00013972,2]
[331862807,1720797041092,-500.0,0.00013972,2]
[331862809,1720797041101,-1006.2,0.00014,2]
[331862811,1720797041110,-18.232061,0.00014,2]
[331862813,1720797041123,-131.767939,0.00014,2]
[331862816,1720797041133,-343.444561,0.00014015,2]
[331862818,1720797041144,-156.555439,0.00014015,2]
[331862820,1720797041154,-500.0,0.00014015,2]
[331862822,1720797041164,-89.27859978,0.00014015,2]
[331862824,1720797041175,-410.72140022,0.00014015,2]
[331862826,1720797041184,-49.84833851,0.00014015,2]
[331862829,1720797041209,-450.15166149,0.00014015,2]
[331862831,1720797041219,-13.67169851,0.00014015,2]
[331862833,1720797041230,-486.32830149,0.00014015,2]
[331862835,1720797041239,-500.0,0.00014016,2]
[331862837,1720797041249,-11331.60270626,0.00014025,2]
[331862839,1720797041260,-26359.67689374,0.00014025,2]
[331862841,1720797041270,-500.0,0.00014026,2]
[331862843,1720797041279,-500.0,0.00014026,2]
[331862845,1720797041289,-500.0,0.0001407,2]
[331862847,1720797041298,-500.0,0.0001407,2]
[331862849,1720797041308,-500.0,0.0001407,2]
[331862851,1720797041317,-500.0,0.0001407,2]
[331862853,1720797041327,-500.0,0.0001407,2]
[331862855,1720797041336,-500.0,0.00014071,2]
[331862857,1720797041345,-500.0,0.00014081,2]
[331862859,1720797041354,-500.0,0.00014081,2]
[331862861,1720797041364,-337.17662013,0.00014125,2]
[331862863,1720797041374,-500.0,0.00014125,2]
[331862865,1720797041383,-500.0,0.00014125,2]
[331862867,1720797041392,-500.0,0.00014125,2]
[331862869,1720797041404,-500.0,0.00014125,2]
[331862871,1720797041413,-500.0,0.00014126,2]
[331862873,1720797041423,-500.0,0.00014136,2]
[331862875,1720797041432,-500.0,0.00014136,2]
[331862877,1720797041442,-500.0,0.0001418,2]
[331862879,1720797041451,-500.0,0.0001418,2]
[331862880,1720797041460,-500.0,0.0001418,2]
[331862882,1720797041469,-500.0,0.0001418,2]
[331862884,1720797041478,-500.0,0.00014181,2]
[331862886,1720797041488,-500.0,0.00014191,2]
[331862888,1720797041498,-500.0,0.00014191,2]
[331862890,1720797041511,-405.0,0.00014206,2]
[331862893,1720797041522,-500.0,0.00014235,2]
[331862894,1720797041531,-500.0,0.00014235,2]
[331862896,1720797041541,-500.0,0.00014235,2]
[331862898,1720797041550,-500.0,0.00014235,2]
[331862900,1720797041560,-500.0,0.00014236,2]
[331862902,1720797041570,-3039.79,0.00014243,2]
[331862904,1720797041580,-500.0,0.00014243,2]
[331862906,1720797041589,-804.24,0.00014243,2]
[331862908,1720797041598,-300.65850901,0.00014243,2]
[331862911,1720797041610,-199.34149099,0.00014243,2]
[331862913,1720797041619,-500.0,0.00014243,2]
[331862914,1720797041628,-500.0,0.00014243,2]
[331862916,1720797041638,-562.8,0.00014243,2]
[331862918,1720797041648,-318.0,0.00014244,2]
[331862921,1720797041661,-318.0,0.00014244,2]
[331862923,1720797041671,-318.0,0.00014244,2]
[331862925,1720797041680,-318.0,0.00014244,2]
[331862927,1720797041690,-318.0,0.00014244,2]
[331862929,1720797041699,-318.0,0.00014244,2]
[331862931,1720797041708,-318.0,0.00014244,2]
[331862932,1720797041718,-318.0,0.00014244,2]
[331862934,1720797041727,-318.0,0.00014244,2]
[331862936,1720797041736,-318.0,0.00014244,2]
[331862938,1720797041745,-318.0,0.00014244,2]
[331862940,1720797041755,-318.0,0.00014244,2]
[331862942,1720797041764,-318.0,0.00014244,2]
[331862944,1720797041774,-318.0,0.00014244,2]
[331862946,1720797041783,-318.0,0.00014244,2]
[331862948,1720797041793,-318.0,0.00014244,2]
[331862950,1720797041802,-318.0,0.00014244,2]
[331862952,1720797041812,-318.0,0.00014244,2]
[331862954,1720797041822,-318.0,0.00014244,2]
[331862956,1720797041831,-318.0,0.00014244,2]
[331862958,1720797041843,-318.0,0.00014244,2]
[331862960,1720797041855,-318.0,0.00014244,2]
[331862962,1720797041864,-318.0,0.00014244,2]
[331862964,1720797041873,-318.0,0.00014244,2]
[331862966,1720797041883,-318.0,0.00014244,2]
[331862968,1720797041895,-318.0,0.00014244,2]
[331862970,1720797041907,-37.96588301,0.00014244,2]
[331862973,1720797041923,-280.03411699,0.00014244,2]
[331862975,1720797041933,-318.0,0.00014244,2]
[331862977,1720797041942,-318.0,0.00014244,2]
[331862978,1720797041952,-318.0,0.00014244,2]
[331862980,1720797041962,-318.0,0.00014244,2]
[331862982,1720797041971,-318.0,0.00014244,2]
[331862984,1720797041980,-318.0,0.00014244,2]
[331862986,1720797041990,-318.0,0.00014244,2]
[331862989,1720797042000,-318.0,0.00014244,2]
[331862990,1720797042010,-318.0,0.00014244,2]
[331862992,1720797042019,-318.0,0.00014244,2]
[331862994,1720797042029,-318.0,0.00014244,2]
[331862996,1720797042039,-318.0,0.00014244,2]
[331862998,1720797042049,-318.0,0.00014244,2]
[331863000,1720797042058,-318.0,0.00014244,2]
[331863002,1720797042067,-318.0,0.00014244,2]
[331863004,1720797042076,-318.0,0.00014244,2]
[331863006,1720797042085,-318.0,0.00014244,2]
[331863008,1720797042095,-318.0,0.00014244,2]
[331863010,1720797042104,-318.0,0.00014244,2]
[331863011,1720797042114,-318.0,0.00014244,2]
[331863014,1720797042125,-318.0,0.00014244,2]
[331863016,1720797042135,-318.0,0.00014244,2]
[331863018,1720797042145,-318.0,0.00014244,2]
[331863020,1720797042156,-318.0,0.00014244,2]
[331863022,1720797042166,-318.0,0.00014244,2]
[331863024,1720797042175,-318.0,0.00014244,2]
[331863026,1720797042184,-318.0,0.00014244,2]
[331863028,1720797042193,-318.0,0.00014244,2]
[331863030,1720797042203,-318.0,0.00014244,2]
[331863032,1720797042212,-318.0,0.00014244,2]
[331863034,1720797042222,-318.0,0.00014244,2]
[331863035,1720797042231,-318.0,0.00014244,2]
[331863037,1720797042241,-318.0,0.00014244,2]
[331863040,1720797042251,-318.0,0.00014244,2]
[331863041,1720797042260,-318.0,0.00014244,2]
[331863043,1720797042270,-318.0,0.00014244,2]
[331863045,1720797042279,-318.0,0.00014244,2]
[331863047,1720797042288,-318.0,0.00014244,2]
[331863049,1720797042299,-318.0,0.00014244,2]
[331863070,1720797042494,-318.0,0.00014244,2]
[331863072,1720797042505,-318.0,0.00014244,2]
[331863074,1720797042514,-318.0,0.00014244,2]
[331863076,1720797042524,-318.0,0.00014244,2]
[331863078,1720797042534,-318.0,0.00014244,2]
[331863080,1720797042543,-318.0,0.00014244,2]
[331863081,1720797042552,-318.0,0.00014244,2]
[331863083,1720797042562,-318.0,0.00014244,2]
[331863085,1720797042572,-318.0,0.00014244,2]
[331863087,1720797042582,-318.0,0.00014244,2]
[331863089,1720797042591,-318.0,0.00014244,2]
[331863091,1720797042601,-318.0,0.00014244,2]
[331863093,1720797042611,-318.0,0.00014244,2]
[331863095,1720797042620,-318.0,0.00014244,2]
[331863097,1720797042630,-318.0,0.00014244,2]
[331863100,1720797042640,-318.0,0.00014244,2]
[331863102,1720797042651,-318.0,0.00014244,2]
[331863103,1720797042662,-318.0,0.00014244,2]
[331863105,1720797042671,-318.0,0.00014244,2]
[331863107,1720797042680,-318.0,0.00014244,2]
[331863109,1720797042690,-318.0,0.00014244,2]
[331863111,1720797042699,-500.0,0.00014245,2]
[331863113,1720797042709,-500.0,0.00014246,2]
[331863115,1720797042718,-500.0,0.00014246,2]
[331863117,1720797042728,-318.0,0.00014254,2]
[331863119,1720797042737,-318.0,0.00014254,2]
[331863121,1720797042746,-318.0,0.00014254,2]
[331863123,1720797042758,-318.0,0.00014254,2]
[331863125,1720797042768,-318.0,0.00014254,2]
[331863127,1720797042777,-318.0,0.00014254,2]
[331863129,1720797042787,-318.0,0.00014254,2]
[331863131,1720797042796,-318.0,0.00014254,2]
[331863133,1720797042805,-318.0,0.00014254,2]
[331863135,1720797042814,-318.0,0.00014254,2]
[331863137,1720797042824,-318.41106978,0.00014289,2]
[331863139,1720797042834,-569.78106682,0.00014289,2]
[331863141,1720797042847,-500.0,0.00014289,2]
[331863143,1720797042856,-500.0,0.00014289,2]
[331863145,1720797042865,-500.0,0.0001429,2]
[331863147,1720797042874,-500.0,0.00014297,2]
[331863149,1720797042885,-500.0,0.00014297,2]
[331863152,1720797042894,-500.0,0.00014297,2]
[331863155,1720797042906,-500.0,0.00014297,2]
[331863158,1720797042916,-500.0,0.00014297,2]
[331863161,1720797042926,-3039.79,0.00014298,2]
[331863164,1720797042935,-500.0,0.00014298,2]
[331863167,1720797042946,-804.24,0.00014298,2]
[331863170,1720797042956,-500.0,0.00014298,2]
[331863173,1720797042965,-500.0,0.00014298,2]
[331863175,1720797042974,-500.0,0.00014298,2]
[331863177,1720797042983,-562.8,0.00014298,2]
[331863178,1720797042992,-867.196,0.00014298,2]
[331863179,1720797043001,-500.0,0.000143,2]
[331863180,1720797043011,-521.58,0.000143,2]
[331863181,1720797043020,-174.0861955,0.00014301,2]
[331863182,1720797043030,-500.0,0.00014344,2]
[331863183,1720797043039,-500.0,0.00014344,2]
[331863184,1720797043047,-571.21,0.00014345,2]
[331863185,1720797043057,-3039.79,0.00014352,2]
[331863186,1720797043066,-500.0,0.00014352,2]
[331863187,1720797043076,-804.24,0.00014352,2]
[331863188,1720797043085,-500.0,0.00014352,2]
[331863189,1720797043095,-500.0,0.00014352,2]
[331863190,1720797043104,-500.0,0.00014352,2]
[331863191,1720797043113,-500.0,0.00014352,2]
[331863192,1720797043123,-562.8,0.00014352,2]
[331863194,1720797043132,-500.0,0.00014352,2]
[331863197,1720797043140,-405.0,0.00014353,2]
[331863200,1720797043149,-500.0,0.00014355,2]
[331863203,1720797043159,-500.0,0.00014397,2]
[331863206,1720797043169,-500.0,0.00014397,2]
[331863209,1720797043178,-500.0,0.00014397,2]
[331863212,1720797043187,-500.0,0.00014399,2]
[331863215,1720797043196,-500.0,0.00014399,2]
[331863218,1720797043205,-500.0,0.00014401,2]
[331863221,1720797043215,-3039.79,0.00014407,2]
[331863223,1720797043224,-500.0,0.00014407,2]
[331863225,1720797043234,-804.24,0.00014407,2]
[331863227,1720797043244,-500.0,0.00014407,2]
[331863229,1720797043254,-500.0,0.00014407,2]
[331863231,1720797043263,-500.0,0.00014407,2]
[331863233,1720797043272,-500.0,0.00014407,2]
[331863235,1720797043281,-562.8,0.00014407,2]
[331863237,1720797043291,-500.0,0.00014407,2]
[331863239,1720797043300,-500.0,0.0001441,2]
[331863241,1720797043310,-500.0,0.0001441,2]
[331863243,1720797043319,-500.0,0.00014419,2]
[331863245,1720797043328,-500.0,0.00014428,2]
[331863247,1720797043337,-500.0,0.00014436,2]
[331863248,1720797043346,-165.25,0.00014445,2]
[331863250,1720797043356,-500.0,0.00014445,2]
[331863252,1720797043365,-500.0,0.00014452,2]
[331863254,1720797043375,-500.0,0.00014452,2]
[331863256,1720797043384,-500.0,0.00014452,2]
[331863258,1720797043393,-500.0,0.00014454,2]
[331863260,1720797043403,-500.0,0.00014454,2]
[331863262,1720797043412,-500.0,0.00014454,2]
[331863264,1720797043422,-500.0,0.00014455,2]
[331863266,1720797043431,-500.0,0.00014455,2]
[331863268,1720797043441,-500.0,0.00014455,2]
[331863270,1720797043450,-500.0,0.00014455,2]
[331863272,1720797043459,-500.0,0.00014455,2]
[331863274,1720797043469,-500.0,0.00014455,2]
[331863276,1720797043478,-500.0,0.00014455,2]
[331863278,1720797043488,-500.0,0.00014455,2]
[331863280,1720797043497,-500.0,0.00014455,2]
[331863282,1720797043506,-500.0,0.00014455,2]
[331863284,1720797043516,-500.0,0.00014455,2]
[331863286,1720797043526,-264.73613661,0.00014455,2]
[331863288,1720797043535,-500.0,0.00014455,2]
[331863290,1720797043545,-500.0,0.00014455,2]
[331863292,1720797043555,-500.0,0.00014455,2]
[331863294,1720797043564,-185.122776,0.00014455,2]
[331863296,1720797043574,-500.0,0.00014455,2]
[331863298,1720797043584,-500.0,0.00014455,2]
[331863300,1720797043593,-500.0,0.00014455,2]
[331863302,1720797043603,-500.0,0.00014455,2]
[331863304,1720797043613,-500.0,0.00014455,2]
[331863305,1720797043622,-500.0,0.00014455,2]
[331863307,1720797043632,-188.82297552,0.00014455,2]
[331863309,1720797043641,-2125.46,0.00014455,2]
[331863311,1720797043651,-500.0,0.00014455,2]
[331863313,1720797043660,-500.0,0.00014455,2]
[331863314,1720797043670,-438.25281739,0.00014455,2]
[331863315,1720797043680,-500.0,0.00014455,2]
[331863316,1720797043689,-500.0,0.00014455,2]
[331863317,1720797043699,-500.0,0.00014455,2]
[331863318,1720797043709,-500.0,0.00014455,2]
[331863319,1720797043719,-500.0,0.00014455,2]
[331863320,1720797043729,-500.0,0.00014455,2]
[331863321,1720797043739,-500.0,0.00014455,2]
[331863322,1720797043748,-500.0,0.00014455,2]
[331863323,1720797043758,-500.0,0.00014455,2]
[331863324,1720797043767,-500.0,0.00014455,2]
[331863325,1720797043776,-627.88350335,0.00014455,2]
[331863326,1720797043785,-500.0,0.00014455,2]
[331863327,1720797043794,-500.0,0.00014455,2]
[331863328,1720797043804,-500.0,0.00014455,2]
[331863329,1720797043813,-500.0,0.00014455,2]
[331863330,1720797043822,-297.47164519,0.00014455,2]
[331863334,1720797043849,-202.52835481,0.00014455,2]
[331863337,1720797043858,-500.0,0.00014455,2]
[331863339,1720797043868,-500.0,0.00014455,2]
[331863341,1720797043876,-450.7963459,0.00014455,2]
[331863343,1720797043886,-3039.79,0.00014462,2]
[331863344,1720797043895,-500.0,0.00014462,2]
[331863345,1720797043904,-684.58529929,0.00014462,2]
[331863346,1720797043915,-119.65470071,0.00014462,2]
[331863348,1720797043927,-500.0,0.00014462,2]
[331863350,1720797043938,-105.34529929,0.00014462,2]
[331863352,1720797043950,-394.65470071,0.00014462,2]
[331863355,1720797043961,-500.0,0.00014462,2]
[331863356,1720797043971,-500.0,0.00014462,2]
[331863358,1720797043981,-562.8,0.00014462,2]
[331863360,1720797043991,-217.4192277,0.00014462,2]
[331863362,1720797044000,-381.70786097,0.00014463,2]
[331863363,1720797044013,-118.29213903,0.00014463,2]
[331863364,1720797044022,-185.49463346,0.00014465,2]
[331863365,1720797044033,-314.50536654,0.00014465,2]
[331863366,1720797044042,-500.0,0.00014472,2]
[331863367,1720797044052,-188.98,0.00014475,2]
[331863368,1720797044062,-29.26463346,0.00014478,10]
[331863369,1720797044074,-470.73536654,0.00014478,10]
[331863370,1720797044083,-52.65663346,0.0001448,2]
[331863371,1720797044113,-2875.97006666,0.00013104,2]
[331863372,1720797044122,-389.04054258,0.0001448,2]
[331863373,1720797044133,-58.30282396,0.0001448,2]
[331863374,1720797044143,-399.16672853,0.00014482,2]
[331863375,1720797044162,-600.83327147,0.00014482,2]
[331863376,1720797044171,-500.0,0.00014489,2]
[331863377,1720797044180,-500.0,0.00014498,2]
[331863378,1720797044190,-176.45415685,0.00014499,2]
[331863379,1720797044201,-228.54584315,0.00014499,2]
[331863380,1720797044211,-500.0,0.00014507,2]
[331863381,1720797044220,-500.0,0.00014507,2]
[331863382,1720797044231,-500.0,0.00014507,2]
[331863383,1720797044240,-500.0,0.00014507,2]
[331863384,1720797044249,-500.0,0.00014509,2]
[331863385,1720797044258,-500.0,0.00014509,2]
[331863386,1720797044267,-499.999999,0.0001451,2]
[331863387,1720797044277,-500.0,0.0001451,2]
[331863388,1720797044286,-500.0,0.0001451,2]
[331863389,1720797044295,-500.0,0.0001451,2]
[331863390,1720797044304,-500.0,0.0001451,2]
[331863391,1720797044314,-500.0,0.0001451,2]
[331863392,1720797044323,-500.0,0.0001451,2]
[331863393,1720797044332,-333.95415785,0.0001451,2]
[331863394,1720797044344,-41.41412872,0.0001451,2]
[331863395,1720797044353,-500.0,0.0001451,2]
[331863396,1720797044362,-500.0,0.0001451,2]
[331863397,1720797044371,-500.0,0.0001451,2]
[331863399,1720797044381,-500.0,0.0001451,2]
[331863401,1720797044390,-500.0,0.0001451,2]
[331863403,1720797044399,-500.0,0.0001451,2]
[331863405,1720797044408,-500.0,0.0001451,2]
[331863407,1720797044417,-500.0,0.0001451,2]
[331863409,1720797044427,-2125.46,0.0001451,2]
[331863411,1720797044437,-500.0,0.0001451,2]
[331863413,1720797044446,-500.0,0.0001451,2]
[331863415,1720797044455,-500.0,0.0001451,2]
[331863417,1720797044463,-500.0,0.0001451,2]
[331863419,1720797044472,-500.0,0.0001451,2]
[331863421,1720797044481,-500.0,0.0001451,2]
[331863423,1720797044490,-311.8871941,0.0001451,2]
[331863425,1720797044499,-500.0,0.0001451,2]
[331863427,1720797044509,-500.0,0.0001451,2]
[331863428,1720797044518,-500.0,0.0001451,2]
[331863430,1720797044527,-500.0,0.0001451,2]
[331863432,1720797044536,-500.0,0.0001451,2]
[331863434,1720797044546,-500.0,0.0001451,2]
[331863436,1720797044555,-500.0,0.0001451,2]
[331863438,1720797044564,-500.0,0.00014516,2]
[331863440,1720797044573,-500.0,0.00014516,2]
[331863442,1720797044582,-500.0,0.00014516,2]
[331863444,1720797044591,-500.0,0.00014516,2]
[331863446,1720797044600,-500.0,0.00014516,2]
[331863448,1720797044610,-3039.79,0.00014517,2]
[331863450,1720797044619,-500.0,0.00014517,2]
[331863452,1720797044629,-804.24,0.00014517,2]
[331863454,1720797044638,-562.8,0.00014517,2]
[331863456,1720797044647,-500.0,0.0001452,2]
[331863458,1720797044658,-500.0,0.00014524,2]
[331863460,1720797044667,-24874.0236869,0.00014532,3]
[331863462,1720797044676,-500.0,0.00014533,2]
[331863464,1720797044685,-613.28834,0.00014542,2]
[331863466,1720797044695,-576.0,0.0001455,2]
[331863468,1720797044704,-500.0,0.00014551,2]
[331863470,1720797044713,-500.0,0.0001456,2]
[331863472,1720797044722,-500.0,0.00014562,2]
[331863474,1720797044731,-500.0,0.00014562,2]
[331863476,1720797044741,-578.37,0.00014562,2]
[331863478,1720797044750,-500.0,0.00014563,2]
[331863480,1720797044759,-505.62705063,0.00014563,2]
[331863482,1720797044768,-24874.0236869,0.00014564,3]
[331863484,1720797044778,-500.0,0.00014565,2]
[331863486,1720797044787,-500.0,0.00014565,2]
[331863488,1720797044797,-500.0,0.00014565,2]
[331863490,1720797044806,-289.91959541,0.00014565,2]
[331863492,1720797044815,-500.0,0.00014565,2]
[331863494,1720797044825,-500.0,0.00014565,2]
[331863496,1720797044834,-500.0,0.00014565,2]
[331863498,1720797044845,-500.0,0.00014565,2]
[331863500,1720797044854,-500.0,0.00014565,2]
[331863501,1720797044863,-500.0,0.00014565,2]
[331863503,1720797044872,-2125.46,0.00014565,2]
[331863505,1720797044881,-500.0,0.00014565,2]
[331863507,1720797044892,-456.90072777,0.00014565,2]
[331863509,1720797044901,-500.0,0.00014565,2]
[331863511,1720797044911,-500.0,0.00014565,2]
[331863513,1720797044920,-500.0,0.00014565,2]
[331863515,1720797044932,-500.0,0.00014565,2]
[331863517,1720797044941,-500.0,0.00014565,2]
[331863519,1720797044950,-500.0,0.00014568,2]
[331863521,1720797044960,-278.43799074,0.00014571,2]
[331863523,1720797044969,-500.0,0.00014571,2]
[331863525,1720797044979,-585.32,0.00014571,2]
[331863527,1720797044988,-500.0,0.00014571,2]